fUST/lending_fUST_20260109
["ID","MTS","AMOUNT","RATE_DAILY","PERIOD"]
[401041932,1767892249745,-151.0,0.00025926,2]
[401041933,1767892249754,-500.0,0.00025926,2]
[401041934,1767892249763,-151.0,0.00025926,2]
[401041936,1767892249772,-151.0,0.00025926,2]
[401041938,1767892249782,-151.0,0.00025926,2]
[401041940,1767892249791,-500.0,0.00025926,2]
[401041942,1767892249800,-30000.0,0.00025926,2]
[401041943,1767892249810,-151.0,0.00025926,2]
[401041944,1767892249820,-151.0,0.00025926,2]
[401041945,1767892249829,-500.0,0.00025926,2]
[401041946,1767892249838,-287.0,0.00025926,2]
[401041947,1767892249847,-151.0,0.00025926,2]
[401041948,1767892249857,-151.0,0.00025926,2]
[401041949,1767892249866,-151.0,0.00025926,2]
[401041950,1767892249876,-514.84070869,0.00025926,2]
[401041951,1767892249885,-250.0,0.00025926,2]
[401041952,1767892249894,-2105.41764886,0.00025981,2]
[401041953,1767892249904,-810.2,0.00025995,2]
[401041954,1767892249913,-1041.66666667,0.00026,3]
[401041955,1767892249923,-500.0,0.00026028,2]
[401041956,1767892249932,-500.0,0.00026028,2]
[401041957,1767892249941,-170.74581839,0.00026028,2]
[401041958,1767892249951,-500.0,0.00026028,2]
[401041959,1767892249960,-220.19624984,0.00026028,2]
[401041960,1767892249969,-167.46972508,0.00026028,2]
[401041961,1767892249979,-500.0,0.00026028,2]
[401041962,1767892249988,-2183.31810187,0.00026036,2]
[401041963,1767892249998,-2264.10087164,0.00026091,2]
[401041964,1767892250008,-972.39,0.000261,7]
[401041965,1767892250017,-2347.87260389,0.00026146,2]
[401041966,1767892250027,-500.0,0.00026165,2]
[401041967,1767892250037,-245.32757896,0.00026165,2]
[401041968,1767892250046,-161.2966229,0.00026165,2]
[401041969,1767892250056,-500.0,0.00026165,2]
[401041970,1767892250065,-500.0,0.00026165,2]
[401041971,1767892250074,-500.0,0.00026165,2]
[401041972,1767892250083,-2434.74389024,0.00026201,2]
[401041973,1767892250093,-2524.82941417,0.00026256,2]
[401041974,1767892250102,-450.0,0.00026301,2]
[401041975,1767892250111,-916.0706166,0.00026302,20]
[401041976,1767892250121,-500.0,0.00026302,2]
[401041977,1767892250130,-500.0,0.00026302,2]
[401041978,1767892250139,-500.0,0.00026302,2]
[401041979,1767892250148,-500.0,0.00026302,2]
[401041980,1767892250158,-2618.2481025,0.00026311,2]
[401041981,1767892250167,-2373.26906487,0.00026364,2]
[401041982,1767892250176,-2545.42955254,0.00026366,2]
[401041983,1767892250186,-167.4,0.000264,7]
[401041984,1767892250196,-1502.08,0.000264,14]
[401041985,1767892250205,-500.0,0.00026439,2]
[401041986,1767892250214,-500.0,0.00026439,2]
[401041987,1767892250223,-500.0,0.00026439,2]
[401041988,1767892250232,-500.0,0.00026439,2]
[401041989,1767892250241,-1093.27707489,0.00026474,2]
[401041990,1767892250251,-151.0,0.00026474,2]
[401041991,1767892250261,-194.72792766,0.00026474,2]
[401041992,1767892250272,-2579.17784983,0.00026474,2]
[401041993,1767892250282,-31110.0,0.00026474,2]
[401041994,1767892250291,-533.88981491,0.00026474,2]
[401041995,1767892250301,-500.0,0.00026576,2]
[401041996,1767892250311,-500.0,0.00026576,2]
[401041997,1767892250320,-231.88170042,0.00026576,2]
[401041998,1767892250329,-500.0,0.00026576,2]
[401041999,1767892250338,-600.0,0.00026663,7]
[401042000,1767892250349,-709.72029921,0.00026695,2]
[401042001,1767892250358,-500.0,0.00026713,2]
[401042002,1767892250367,-500.0,0.00026713,2]
[401042003,1767892250376,-306.12863019,0.00026713,2]
[401042004,1767892250386,-5000.0,0.00026747,2]
[401042005,1767892250395,-2000.0,0.00026786,7]
[401042006,1767892250405,-1200.0,0.00026819,7]
[401042007,1767892250414,-2373.26906487,0.0002682,2]
[401042008,1767892250423,-550.0,0.00026849,2]
[401042009,1767892250432,-500.0,0.0002685,2]
[401042010,1767892250442,-500.0,0.0002685,2]
[401042011,1767892250452,-2373.26906487,0.00026861,2]
[401042012,1767892250460,-2836.04231564,0.00026929,2]
[401042013,1767892250470,-239.0,0.00026959,22]
[401042014,1767892250479,-500.0,0.00026987,2]
[401042015,1767892250489,-500.0,0.00026987,2]
[401042016,1767892250498,-151.0,0.00027022,2]
[401042017,1767892250507,-201.93286099,0.00027022,2]
[401042018,1767892250517,-2674.60743027,0.00027022,2]
[401042019,1767892250526,-32261.07,0.00027022,2]
[401042020,1767892250535,-553.64373807,0.00027022,2]
[401042021,1767892250545,-180.01260088,0.00027122,2]
[401042022,1767892250554,-508.65888898,0.00027124,2]
[401042023,1767892250564,-500.0,0.00027124,2]
[401042024,1767892250573,-500.0,0.00027126,7]
[401042025,1767892250582,-587.58501506,0.00027142,7]
[401042026,1767892250592,-810.2,0.00027196,2]
[401042027,1767892250602,-164.69,0.000272,7]
[401042028,1767892250612,-163.27,0.000272,7]
[401042029,1767892250622,-972.39,0.000272,7]
[401042030,1767892250632,-500.0,0.0002722,7]
[401042031,1767892250641,-1200.0,0.00027253,7]
[401042032,1767892250652,-2373.26906487,0.00027257,2]
[401042033,1767892250661,-500.0,0.00027261,2]
[401042034,1767892250671,-500.0,0.00027271,7]
[401042035,1767892250680,-500.0,0.00027282,7]
[401042036,1767892250689,-1351.1514234,0.00027357,2]
[401042037,1767892250699,-700.0,0.00027359,7]
[401042038,1767892250708,-916.0706166,0.00027371,22]
[401042039,1767892250717,-275.19357734,0.00027372,2]
[401042040,1767892250727,-1100.77430935,0.00027372,2]
[401042041,1767892250736,-2476.74219603,0.00027372,2]
[401042042,1767892250746,-4403.09723739,0.00027372,2]
[401042043,1767892250889,-6879.83943341,0.00027372,2]
[401042044,1767892250899,-500.0,0.00027397,5]
[401042045,1767892250908,-274.56483843,0.00027397,5]
[401042046,1767892250917,-500.0,0.00027397,5]
[401042047,1767892250927,-500.0,0.00027397,5]
[401042048,1767892250937,-399.86331697,0.00027397,5]
[401042049,1767892250946,-249.37140443,0.00027397,5]
[401042050,1767892250956,-319.39162218,0.00027397,5]
[401042051,1767892250965,-500.0,0.00027397,5]
[401042052,1767892250974,-249.72493654,0.00027397,5]
[401042053,1767892250984,-500.0,0.00027397,5]
[401042054,1767892250993,-511.26587294,0.00027397,5]
[401042055,1767892251003,-451.47076654,0.00027397,5]
[401042056,1767892251012,-639.06473284,0.00027397,5]
[401042057,1767892251022,-500.0,0.00027397,5]
[401042058,1767892251032,-500.0,0.00027397,5]
[401042059,1767892251041,-1000.0,0.00027397,2]
[401042060,1767892251050,-500.0,0.00027397,5]
[401042061,1767892251059,-500.0,0.00027397,5]
[401042062,1767892251068,-500.0,0.00027397,5]
[401042063,1767892251077,-500.0,0.00027397,5]
[401042064,1767892251087,-500.0,0.00027397,5]
[401042065,1767892251096,-500.0,0.00027397,5]
[401042066,1767892251106,-500.0,0.00027397,5]
[401042067,1767892251115,-500.0,0.00027397,5]
[401042068,1767892251124,-221.46348536,0.00027397,5]
[401042069,1767892251134,-500.0,0.00027397,5]
[401042070,1767892251143,-500.0,0.00027397,5]
[401042071,1767892251152,-500.0,0.00027397,5]
[401042072,1767892251162,-200.0,0.00027397,5]
[401042073,1767892251171,-3855.87118539,0.00027397,5]
[401042074,1767892251181,-500.0,0.00027397,5]
[401042075,1767892251190,-500.0,0.00027397,5]
[401042076,1767892251199,-168.86016703,0.00027397,5]
[401042077,1767892251209,-478.04413956,0.00027397,5]
[401042078,1767892251218,-540.45,0.00027397,5]
[401042079,1767892251227,-500.0,0.00027397,5]
[401042080,1767892251236,-500.0,0.00027397,5]
[401042081,1767892251245,-502.62309958,0.00027397,5]
[401042082,1767892251255,-265.50779742,0.00027397,5]
[401042083,1767892251266,-500.0,0.00027397,5]
[401042084,1767892251279,-500.0,0.00027397,5]
[401042085,1767892251289,-500.0,0.00027397,5]
[401042086,1767892251298,-478.06035324,0.00027397,5]
[401042087,1767892251309,-500.0,0.00027397,5]
[401042088,1767892251318,-226.16698229,0.00027397,5]
[401042089,1767892251327,-454.58836464,0.00027397,5]
[401042090,1767892251337,-422.42202059,0.00027397,5]
[401042091,1767892251347,-500.0,0.00027397,5]
[401042092,1767892251356,-500.0,0.00027397,5]
[401042093,1767892251367,-301.01531088,0.00027397,5]
[401042094,1767892251376,-500.0,0.00027397,5]
[401042095,1767892251386,-322.68652047,0.00027397,5]
[401042096,1767892251396,-479.89299828,0.00027397,5]
[401042097,1767892251405,-454.68517334,0.00027397,5]
[401042098,1767892251415,-500.0,0.00027397,5]
[401042099,1767892251424,-501.8834924,0.00027397,5]
[401042100,1767892251434,-500.0,0.00027397,5]
[401042101,1767892251443,-500.0,0.00027397,5]
[401042102,1767892251452,-500.0,0.00027397,5]
[401042103,1767892251461,-500.0,0.00027397,5]
[401042104,1767892251470,-573.54037879,0.00027397,5]
[401042105,1767892251479,-505.9524141,0.00027397,5]
[401042106,1767892251489,-500.0,0.00027397,5]
[401042107,1767892251498,-500.0,0.00027397,5]
[401042108,1767892251507,-500.0,0.00027397,5]
[401042109,1767892251516,-500.0,0.00027397,5]
[401042110,1767892251527,-500.0,0.00027397,5]
[401042111,1767892251536,-532.39891321,0.00027397,5]
[401042112,1767892251545,-500.0,0.00027397,5]
[401042113,1767892251555,-500.0,0.00027397,5]
[401042114,1767892251564,-500.0,0.00027397,5]
[401042115,1767892251574,-328.9714411,0.00027397,5]
[401042116,1767892251582,-532.93989261,0.00027397,5]
[401042117,1767892251592,-550.37628333,0.00027397,5]
[401042118,1767892251601,-500.0,0.00027397,5]
[401042119,1767892251613,-500.0,0.00027397,5]
[401042120,1767892251622,-500.0,0.00027397,5]
[401042121,1767892251632,-500.0,0.00027397,5]
[401042122,1767892251641,-500.0,0.00027397,5]
[401042123,1767892251651,-373.21992044,0.00027397,5]
[401042124,1767892251660,-286.14776941,0.00027397,5]
[401042125,1767892251670,-500.0,0.00027397,5]
[401042126,1767892251680,-500.0,0.00027397,5]
[401042127,1767892251689,-500.0,0.00027397,5]
[401042128,1767892251698,-500.0,0.00027397,5]
[401042129,1767892251707,-507.23683959,0.00027397,5]
[401042130,1767892251716,-517.26411692,0.00027397,5]
[401042131,1767892251725,-266.49661152,0.00027397,5]
[401042132,1767892251734,-522.24212736,0.00027397,5]
[401042133,1767892251743,-246.56257818,0.00027397,5]
[401042134,1767892251753,-500.0,0.00027397,5]
[401042135,1767892251763,-244.31728899,0.00027397,5]
[401042136,1767892251772,-500.0,0.00027397,5]
[401042137,1767892251782,-500.0,0.00027397,5]
[401042138,1767892251791,-465.1847005,0.00027397,5]
[401042139,1767892251800,-506.45190802,0.00027397,5]
[401042140,1767892251809,-500.0,0.00027397,5]
[401042141,1767892251819,-480.0,0.00027397,5]
[401042142,1767892251828,-223.85462441,0.00027397,2]
[401042143,1767892251838,-500.0,0.00027397,5]
[401042144,1767892251847,-500.0,0.00027397,5]
[401042145,1767892251858,-500.0,0.00027397,5]
[401042146,1767892251868,-500.0,0.00027397,5]
[401042147,1767892251877,-500.0,0.00027397,5]
[401042148,1767892251886,-500.0,0.00027397,5]
[401042149,1767892251896,-500.0,0.00027397,5]
[401042150,1767892251905,-500.0,0.00027397,5]
[401042151,1767892251915,-500.0,0.00027397,5]
[401042152,1767892251924,-500.0,0.00027397,5]
[401042153,1767892251934,-500.0,0.00027397,5]
[401042154,1767892251944,-500.0,0.00027397,5]
[401042155,1767892251953,-559.13172647,0.00027397,5]
[401042156,1767892251963,-225.1552459,0.00027397,5]
[401042157,1767892251972,-500.0,0.00027397,5]
[401042158,1767892251982,-500.0,0.00027397,5]
[401042159,1767892251991,-517.52044577,0.00027397,5]
[401042160,1767892252003,-500.0,0.00027397,5]
[401042161,1767892252015,-500.0,0.00027397,5]
[401042162,1767892252026,-512.93712309,0.00027397,5]
[401042163,1767892252038,-500.0,0.00027397,5]
[401042164,1767892252058,-369.2206853,0.00027397,5]
[401042165,1767892252074,-516.17803663,0.00027397,5]
[401042166,1767892252097,-500.0,0.00027397,5]
[401042167,1767892252122,-500.0,0.00027397,5]
[401042168,1767892252144,-500.0,0.00027397,5]
[401042169,1767892252165,-500.0,0.00027397,5]
[401042170,1767892252186,-500.0,0.00027397,2]
[401042171,1767892252208,-500.0,0.00027397,5]
[401042172,1767892252230,-524.2646963,0.00027397,5]
[401042173,1767892252254,-297.19318623,0.00027397,5]
[401042174,1767892252278,-500.0,0.00027397,5]
[401042175,1767892252300,-500.0,0.00027397,5]
[401042176,1767892252323,-500.0,0.00027397,5]
[401042177,1767892252344,-500.0,0.00027397,5]
[401042178,1767892252356,-500.0,0.00027397,5]
[401042179,1767892252366,-641.64319289,0.00027397,5]
[401042180,1767892252375,-560.7242137,0.00027397,5]
[401042181,1767892252385,-500.0,0.00027397,5]
[401042182,1767892252396,-500.0,0.00027397,5]
[401042183,1767892252407,-500.0,0.00027397,5]
[401042184,1767892252417,-186.27742242,0.00027397,5]
[401042185,1767892252426,-500.0,0.00027397,5]
[401042186,1767892252436,-500.0,0.00027397,5]
[401042187,1767892252447,-500.0,0.00027397,5]
[401042188,1767892252457,-334.06328209,0.00027397,5]
[401042189,1767892252466,-500.001,0.00027397,2]
[401042190,1767892252475,-600.55324416,0.00027397,2]
[401042191,1767892252486,-500.0,0.00027397,5]
[401042192,1767892252496,-500.0,0.00027397,5]
[401042193,1767892252507,-500.0,0.00027397,5]
[401042194,1767892252517,-500.0,0.00027397,5]
[401042195,1767892252526,-500.0,0.00027397,5]
[401042196,1767892252535,-500.0,0.00027397,5]
[401042197,1767892252545,-500.0,0.00027397,5]
[401042198,1767892252554,-500.0,0.00027397,5]
[401042199,1767892252563,-500.0,0.00027397,5]
[401042200,1767892252573,-500.0,0.00027397,5]
[401042201,1767892252582,-557.97,0.00027397,5]
[401042202,1767892252591,-500.0,0.00027397,5]
[401042203,1767892252601,-500.0,0.00027397,5]
[401042204,1767892252612,-500.0,0.00027397,5]
[401042205,1767892252621,-500.0,0.00027397,5]
[401042206,1767892252631,-500.0,0.00027397,5]
[401042207,1767892252640,-487.2589938,0.00027397,5]
[401042208,1767892252649,-500.0,0.00027397,5]
[401042209,1767892252659,-303.38565511,0.00027397,5]
[401042210,1767892252669,-500.0,0.00027397,5]
[401042211,1767892252678,-500.0,0.00027397,5]
[401042212,1767892252687,-492.36217128,0.00027397,5]
[401042213,1767892252697,-500.0,0.00027397,5]
[401042214,1767892252706,-500.0,0.00027397,5]
[401042215,1767892252715,-500.0,0.00027397,5]
[401042216,1767892252725,-500.0,0.00027397,5]
[401042217,1767892252734,-355.64999287,0.00027397,5]
[401042218,1767892252744,-500.0,0.00027397,5]
[401042219,1767892252753,-500.0,0.00027397,5]
[401042220,1767892252763,-355.29068701,0.00027397,5]
[401042221,1767892252772,-500.0,0.00027397,5]
[401042222,1767892252781,-500.0,0.00027397,5]
[401042223,1767892252791,-508.02726493,0.00027397,5]
[401042224,1767892252800,-500.0,0.00027397,5]
[401042225,1767892252810,-524.58162969,0.00027397,5]
[401042226,1767892252820,-336.81040355,0.00027397,5]
[401042227,1767892252829,-500.0,0.00027397,5]
[401042228,1767892252839,-500.0,0.00027397,5]
[401042229,1767892252848,-500.0,0.00027397,5]
[401042230,1767892252858,-500.0,0.00027397,5]
[401042231,1767892252867,-500.0,0.00027397,5]
[401042232,1767892252876,-500.0,0.00027397,5]
[401042233,1767892252885,-500.0,0.00027397,5]
[401042234,1767892252895,-500.0,0.00027397,5]
[401042235,1767892252904,-500.0,0.00027397,5]
[401042236,1767892252915,-500.0,0.00027397,5]
[401042237,1767892252926,-500.0,0.00027397,5]
[401042238,1767892252936,-500.0,0.00027397,5]
[401042239,1767892252945,-500.0,0.00027397,5]
[401042240,1767892252954,-500.0,0.00027397,5]
[401042241,1767892252963,-372.84028944,0.00027397,5]
[401042242,1767892252972,-500.0,0.00027397,5]
[401042243,1767892252983,-500.0,0.00027397,5]
[401042244,1767892252994,-500.0,0.00027397,5]
[401042245,1767892253003,-500.0,0.00027397,5]
[401042246,1767892253013,-500.0,0.00027397,5]
[401042247,1767892253022,-500.0,0.00027397,5]
[401042248,1767892253031,-500.0,0.00027397,5]
[401042249,1767892253042,-289.69021433,0.00027397,5]
[401042250,1767892253051,-417.98666216,0.00027397,5]
[401042251,1767892253060,-500.0,0.00027397,5]
[401042252,1767892253069,-500.0,0.00027397,5]
[401042253,1767892253079,-500.0,0.00027397,5]
[401042254,1767892253089,-500.0,0.00027397,5]
[401042255,1767892253098,-238.10161712,0.00027397,5]
[401042256,1767892253109,-500.0,0.00027397,5]
[401042257,1767892253118,-500.0,0.00027397,5]
[401042258,1767892253128,-500.0,0.00027397,5]
[401042259,1767892253137,-501.49189016,0.00027397,5]
[401042260,1767892253147,-570.93767114,0.00027397,5]
[401042261,1767892253157,-500.0,0.00027397,5]
[401042262,1767892253166,-500.0,0.00027397,5]
[401042263,1767892253175,-500.0,0.00027397,5]
[401042264,1767892253185,-308.82385964,0.00027397,5]
[401042265,1767892253195,-500.0,0.00027397,5]
[401042266,1767892253205,-555.96752571,0.00027397,5]
[401042267,1767892253215,-500.0,0.00027397,5]
[401042268,1767892253224,-500.0,0.00027397,5]
[401042269,1767892253234,-500.0,0.00027397,5]
[401042270,1767892253243,-500.0,0.00027397,5]
[401042271,1767892253253,-500.0,0.00027397,5]
[401042272,1767892253265,-500.0,0.00027397,5]
[401042273,1767892253274,-500.0,0.00027397,5]
[401042274,1767892253284,-500.0,0.00027397,5]
[401042275,1767892253294,-500.0,0.00027397,5]
[401042276,1767892253304,-500.0,0.00027397,5]
[401042277,1767892253313,-216.1712136,0.00027397,5]
[401042278,1767892253323,-500.0,0.00027397,2]
[401042279,1767892253332,-500.0,0.00027397,5]
[401042280,1767892253343,-500.0,0.00027397,5]
[401042281,1767892253353,-594.35609104,0.00027397,5]
[401042282,1767892253365,-500.0,0.00027397,5]
[401042283,1767892253374,-500.0,0.00027397,5]
[401042284,1767892253383,-648.72760221,0.00027397,5]
[401042285,1767892253392,-508.28219185,0.00027397,5]
[401042286,1767892253402,-500.0,0.00027397,5]
[401042287,1767892253411,-500.0,0.00027397,2]
[401042288,1767892253421,-500.0,0.00027397,5]
[401042289,1767892253430,-500.0,0.00027397,5]
[401042290,1767892253440,-500.0,0.00027397,5]
[401042291,1767892253449,-500.0,0.00027397,5]
[401042292,1767892253459,-558.8788453,0.00027397,5]
[401042293,1767892253468,-185.84971769,0.00027397,5]
[401042294,1767892253478,-500.0,0.00027397,5]
[401042295,1767892253488,-500.0,0.00027397,5]
[401042296,1767892253497,-553.26872399,0.00027397,5]
[401042297,1767892253507,-500.0,0.00027397,2]
[401042298,1767892253515,-500.0,0.00027397,5]
[401042299,1767892253525,-500.0,0.00027397,5]
[401042300,1767892253535,-500.0,0.00027397,5]
[401042301,1767892253545,-500.0,0.00027397,5]
[401042302,1767892253555,-500.0,0.00027397,5]
[401042303,1767892253564,-500.0,0.00027397,5]
[401042304,1767892253574,-491.78957999,0.00027397,5]
[401042305,1767892253583,-393.21553345,0.00027397,5]
[401042306,1767892253593,-500.0,0.00027397,5]
[401042307,1767892253602,-500.0,0.00027397,5]
[401042308,1767892253613,-500.0,0.00027397,5]
[401042309,1767892253623,-236.70087265,0.00027397,5]
[401042310,1767892253634,-500.0,0.00027397,5]
[401042311,1767892253644,-500.0,0.00027397,5]
[401042312,1767892253653,-500.0,0.00027397,5]
[401042313,1767892253663,-184.88515932,0.00027397,5]
[401042314,1767892253672,-508.07366699,0.00027397,5]
[401042315,1767892253682,-500.0,0.00027397,5]
[401042316,1767892253692,-500.0,0.00027397,5]
[401042317,1767892253702,-500.0,0.00027397,5]
[401042318,1767892253712,-500.0,0.00027397,5]
[401042319,1767892253722,-500.0,0.00027397,5]
[401042320,1767892253732,-500.0,0.00027397,5]
[401042321,1767892253741,-500.0,0.00027397,5]
[401042322,1767892253751,-500.0,0.00027397,5]
[401042323,1767892253761,-500.0,0.00027397,5]
[401042324,1767892253771,-500.0,0.00027397,5]
[401042325,1767892253780,-500.0,0.00027397,5]
[401042326,1767892253790,-274.85943086,0.00027397,5]
[401042327,1767892253800,-500.0,0.00027397,5]
[401042328,1767892253810,-500.0,0.00027397,5]
[401042329,1767892253819,-422.53747681,0.00027397,5]
[401042330,1767892253828,-500.0,0.00027397,5]
[401042331,1767892253838,-500.0,0.00027397,5]
[401042332,1767892253847,-500.0,0.00027397,5]
[401042333,1767892253856,-500.0,0.00027397,5]
[401042334,1767892253866,-500.0,0.00027397,5]
[401042335,1767892253876,-500.0,0.00027397,5]
[401042336,1767892253885,-500.0,0.00027397,5]
[401042337,1767892254037,-500.0,0.00027397,5]
[401042338,1767892254048,-500.0,0.00027397,5]
[401042339,1767892254058,-500.0,0.00027397,5]
[401042340,1767892254068,-500.0,0.00027397,5]
[401042341,1767892254078,-500.0,0.00027397,5]
[401042342,1767892254089,-500.0,0.00027397,5]
[401042343,1767892254099,-500.0,0.00027397,5]
[401042344,1767892254108,-500.0,0.00027397,5]
[401042345,1767892254118,-500.0,0.00027397,5]
[401042346,1767892254128,-500.0,0.00027397,5]
[401042347,1767892254138,-500.0,0.00027397,5]
[401042348,1767892254147,-500.0,0.00027397,5]
[401042349,1767892254157,-500.0,0.00027397,5]
[401042350,1767892254166,-500.0,0.00027397,5]
[401042351,1767892254176,-500.0,0.00027397,5]
[401042352,1767892254185,-533.61862742,0.00027397,5]
[401042353,1767892254196,-412.74437433,0.00027397,5]
[401042354,1767892254205,-500.0,0.00027397,5]
[401042355,1767892254214,-500.0,0.00027397,5]
[401042356,1767892254225,-500.0,0.00027397,5]
[401042357,1767892254235,-500.0,0.00027397,5]
[401042358,1767892254245,-194.70590484,0.00027397,5]
[401042359,1767892254254,-500.0,0.00027397,5]
[401042360,1767892254266,-500.0,0.00027397,5]
[401042361,1767892254276,-542.97643067,0.00027397,5]
[401042362,1767892254285,-500.0,0.00027397,5]
[401042363,1767892254295,-472.54080697,0.00027397,5]
[401042364,1767892254305,-500.0,0.00027397,5]
[401042365,1767892254314,-500.0,0.00027397,5]
[401042366,1767892254323,-455.48949126,0.00027397,5]
[401042367,1767892254333,-293.91394765,0.00027397,5]
[401042368,1767892254343,-500.0,0.00027397,5]
[401042369,1767892254353,-500.0,0.00027397,5]
[401042370,1767892254363,-500.0,0.00027397,5]
[401042371,1767892254373,-500.0,0.00027397,5]
[401042372,1767892254382,-489.06772997,0.00027397,5]
[401042373,1767892254392,-257.59709478,0.00027397,5]
[401042374,1767892254401,-500.0,0.00027397,5]
[401042375,1767892254411,-500.0,0.00027397,5]
[401042376,1767892254421,-462.11673736,0.00027397,5]
[401042377,1767892254430,-500.0,0.00027397,5]
[401042378,1767892254439,-500.0,0.00027397,5]
[401042379,1767892254449,-500.0,0.00027397,5]
[401042380,1767892254459,-500.0,0.00027397,5]
[401042381,1767892254468,-500.0,0.00027397,5]
[401042382,1767892254477,-500.0,0.00027397,5]
[401042383,1767892254487,-517.63,0.00027397,5]
[401042384,1767892254496,-500.0,0.00027397,5]
[401042385,1767892254506,-500.0,0.00027397,5]
[401042386,1767892254515,-500.0,0.00027397,5]
[401042387,1767892254524,-500.0,0.00027397,5]
[401042388,1767892254535,-692.57,0.00027397,5]
[401042389,1767892254544,-500.0,0.00027397,5]
[401042390,1767892254553,-500.0,0.00027397,5]
[401042391,1767892254563,-500.0,0.00027397,5]
[401042392,1767892254572,-500.0,0.00027397,5]
[401042393,1767892254581,-500.0,0.00027397,5]
[401042394,1767892254592,-435.89045774,0.00027397,5]
[401042395,1767892254601,-500.0,0.00027397,5]
[401042396,1767892254610,-500.0,0.00027397,5]
[401042397,1767892254620,-500.0,0.00027397,5]
[401042398,1767892254629,-500.0,0.00027397,5]
[401042399,1767892254638,-500.0,0.00027397,5]
[401042400,1767892254648,-500.0,0.00027397,5]
[401042401,1767892254657,-500.0,0.00027397,5]
[401042402,1767892254666,-300.59379957,0.00027397,5]
[401042403,1767892254676,-500.0,0.00027397,5]
[401042404,1767892254685,-513.45357829,0.00027397,5]
[401042405,1767892254694,-291.31204022,0.00027397,5]
[401042406,1767892254703,-500.0,0.00027397,5]
[401042407,1767892254713,-500.0,0.00027397,5]
[401042408,1767892254722,-500.0,0.00027397,5]
[401042409,1767892254731,-500.0,0.00027397,5]
[401042410,1767892254740,-497.71228405,0.00027397,5]
[401042411,1767892254750,-500.0,0.00027397,5]
[401042412,1767892254759,-500.0,0.00027397,5]
[401042413,1767892254769,-2443.5,0.00027397,5]
[401042414,1767892254779,-500.0,0.00027397,5]
[401042415,1767892254788,-500.0,0.00027397,5]
[401042416,1767892254797,-500.0,0.00027397,5]
[401042417,1767892254806,-500.0,0.00027397,5]
[401042418,1767892254817,-500.0,0.00027397,5]
[401042419,1767892254826,-500.0,0.00027397,5]
[401042420,1767892254836,-500.0,0.00027397,5]
[401042421,1767892254846,-500.0,0.00027397,5]
[401042422,1767892254855,-500.0,0.00027397,5]
[401042423,1767892254865,-500.0,0.00027397,5]
[401042424,1767892254875,-500.0,0.00027397,5]
[401042425,1767892254884,-500.0,0.00027397,5]
[401042426,1767892254893,-500.0,0.00027397,5]
[401042427,1767892254907,-500.0,0.00027397,5]
[401042428,1767892254917,-500.0,0.00027397,5]
[401042429,1767892254926,-500.0,0.00027397,5]
[401042430,1767892254936,-500.0,0.00027397,5]
[401042431,1767892254945,-329.5361108,0.00027397,5]
[401042432,1767892254954,-500.0,0.00027397,5]
[401042433,1767892254964,-384.86471705,0.00027397,5]
[401042434,1767892254974,-500.0,0.00027397,5]
[401042435,1767892254983,-500.0,0.00027397,5]